fUSD/lending_fUSD_20250206
["ID","MTS","AMOUNT","RATE_DAILY","PERIOD"]
[352008709,1738877439809,-500.0,0.00017253,2]
[352008710,1738877439819,-500.0,0.00017253,2]
[352008712,1738877439828,-500.0,0.00017253,2]
[352008713,1738877439837,-500.0,0.00017253,2]
[352008715,1738877439847,-500.0,0.00017253,2]
[352008718,1738877439857,-500.0,0.00017253,2]
[352008720,1738877439866,-500.0,0.00017253,2]
[352008723,1738877439875,-500.0,0.00017253,2]
[352008726,1738877439885,-500.0,0.00017253,2]
[352008729,1738877439895,-500.0,0.00017253,2]
[352008731,1738877439904,-500.0,0.00017253,2]
[352008733,1738877439913,-624.37,0.00017254,2]
[352008735,1738877439923,-500.0,0.00017254,2]
[352008737,1738877439932,-500.0,0.00017254,2]
[352008739,1738877439942,-500.0,0.00017254,2]
[352008741,1738877439951,-500.0,0.00017254,2]
[352008743,1738877439960,-500.0,0.00017254,2]
[352008745,1738877439969,-556.18,0.00017254,2]
[352008747,1738877439979,-176.56,0.00017254,2]
[352008749,1738877439989,-500.0,0.00017254,2]
[352008751,1738877439998,-500.0,0.00017254,2]
[352008753,1738877440007,-316.98,0.00017254,2]
[352008755,1738877440017,-255.06,0.00017254,2]
[352008757,1738877440027,-500.0,0.00017254,2]
[352008759,1738877440038,-500.0,0.00017254,2]
[352008761,1738877440052,-500.0,0.00017254,2]
[352008763,1738877440061,-176.68,0.00017254,2]
[352008765,1738877440071,-271.8,0.00017254,2]
[352008767,1738877440080,-500.0,0.00017254,2]
[352008769,1738877440089,-500.0,0.00017254,2]
[352008771,1738877440099,-500.0,0.00017254,2]
[352008773,1738877440110,-228.26,0.00017254,2]
[352008775,1738877440120,-484.26,0.00017254,2]
[352008777,1738877440130,-500.0,0.00017254,2]
[352008779,1738877440140,-984.89,0.00017258,2]
[352008781,1738877440151,-150.0,0.00017267,2]
[352008783,1738877440160,-500.0,0.00017267,2]
[352008785,1738877440169,-2000.0,0.00017267,2]
[352008787,1738877440178,-500.0,0.00017267,2]
[352008789,1738877440187,-500.0,0.00017267,2]
[352008791,1738877440198,-200.0,0.00017267,2]
[352008793,1738877440207,-150.0,0.00017279,2]
[352008795,1738877440216,-150.0,0.00017298,2]
[352008797,1738877440226,-150.0,0.00017316,2]
[352008799,1738877440235,-150.0,0.0001735,2]
[352008801,1738877440245,-1261.61378,0.0001735,2]
[352008803,1738877440254,-166.45082804,0.00017362,2]
[352008805,1738877440263,-500.0,0.00017372,2]
[352008807,1738877440273,-500.0,0.00017372,2]
[352008809,1738877440283,-500.0,0.00017372,2]
[352008811,1738877440292,-789.84,0.00017372,2]
[352008813,1738877440301,-533.41,0.00017372,2]
[352008815,1738877440311,-500.0,0.00017372,2]
[352008817,1738877440320,-537.38,0.00017372,2]
[352008819,1738877440329,-850.56,0.00017372,2]
[352008821,1738877440339,-656.98,0.00017372,2]
[352008823,1738877440350,-500.0,0.00017372,2]
[352008825,1738877440359,-500.0,0.00017372,2]
[352008827,1738877440369,-500.0,0.00017372,2]
[352008829,1738877440379,-500.0,0.00017372,2]
[352008831,1738877440388,-500.0,0.00017372,2]
[352008832,1738877440399,-1251.75,0.00017372,2]
[352008833,1738877440409,-500.0,0.00017372,2]
[352008834,1738877440419,-500.0,0.00017372,2]
[352008835,1738877440428,-500.0,0.00017372,2]
[352008836,1738877440437,-568.39,0.00017372,2]
[352008837,1738877440447,-500.0,0.00017372,2]
[352008838,1738877440456,-500.0,0.00017372,2]
[352008839,1738877440466,-579.2,0.00017372,2]
[352008840,1738877440476,-500.0,0.00017373,2]
[352008841,1738877440486,-500.0,0.00017373,2]
[352008842,1738877440496,-500.0,0.00017373,2]
[352008843,1738877440506,-500.0,0.00017373,2]
[352008844,1738877440516,-500.0,0.00017373,2]
[352008845,1738877440525,-500.0,0.00017373,2]
[352008847,1738877440535,-366.77086601,0.00017373,2]
[352008849,1738877440545,-500.0,0.00017373,2]
[352008851,1738877440555,-500.0,0.00017373,2]
[352008853,1738877440564,-500.0,0.00017373,2]
[352008855,1738877440574,-500.0,0.00017373,2]
[352008857,1738877440584,-634.17584426,0.00017373,2]
[352008859,1738877440593,-500.0,0.00017373,2]
[352008861,1738877440602,-500.0,0.00017373,2]
[352008863,1738877440612,-500.0,0.00017373,2]
[352008865,1738877440622,-500.0,0.00017373,2]
[352008867,1738877440631,-500.0,0.00017373,2]
[352008869,1738877440641,-500.0,0.00017373,2]
[352008871,1738877440653,-500.0,0.00017373,2]
[352008873,1738877440662,-500.0,0.00017373,2]
[352008875,1738877440672,-500.0,0.00017373,2]
[352008877,1738877440681,-500.0,0.00017373,2]
[352008879,1738877440690,-500.0,0.00017373,2]
[352008881,1738877440699,-500.0,0.00017373,2]
[352008883,1738877440709,-500.0,0.00017373,2]
[352008885,1738877440719,-500.0,0.00017373,2]
[352008887,1738877440728,-500.0,0.00017373,2]
[352008889,1738877440737,-500.0,0.00017373,2]
[352008891,1738877440747,-500.0,0.00017373,2]
[352008894,1738877440758,-500.0,0.00017373,2]
[352008896,1738877440768,-500.0,0.00017373,2]
[352008898,1738877440777,-500.0,0.00017373,2]
[352008900,1738877440787,-645.74,0.00017373,2]
[352008902,1738877440796,-500.0,0.00017373,2]
[352008904,1738877440805,-500.0,0.00017373,2]
[352008906,1738877440814,-500.0,0.00017373,2]
[352008908,1738877440824,-500.0,0.00017373,2]
[352008910,1738877440833,-500.0,0.00017373,2]
[352008912,1738877440843,-500.0,0.00017373,2]
[352008914,1738877440852,-500.0,0.00017373,2]
[352008916,1738877440862,-500.0,0.00017373,2]
[352008918,1738877440871,-500.0,0.00017373,2]
[352008920,1738877440880,-500.0,0.00017373,2]
[352008922,1738877440889,-500.0,0.00017373,2]
[352008924,1738877440902,-500.0,0.00017373,2]
[352008926,1738877440912,-500.0,0.00017373,2]
[352008927,1738877440921,-500.0,0.00017373,2]
[352008930,1738877440931,-500.0,0.00017373,2]
[352008932,1738877440940,-500.0,0.00017373,2]
[352008934,1738877440949,-500.0,0.00017373,2]
[352008936,1738877440959,-500.0,0.00017373,2]
[352008938,1738877440968,-500.0,0.00017373,2]
[352008940,1738877440977,-500.0,0.00017373,2]
[352008942,1738877440987,-500.0,0.00017373,2]
[352008943,1738877440997,-500.0,0.00017373,2]
[352008945,1738877441006,-500.0,0.00017373,2]
[352008947,1738877441016,-500.0,0.00017373,2]
[352008949,1738877441030,-500.0,0.00017373,2]
[352008952,1738877441039,-500.0,0.00017373,2]
[352008954,1738877441049,-500.0,0.00017373,2]
[352008956,1738877441059,-500.0,0.00017373,2]
[352008958,1738877441069,-500.0,0.00017373,2]
[352008959,1738877441078,-500.0,0.00017373,2]
[352008962,1738877441087,-500.0,0.00017373,2]
[352008963,1738877441097,-500.0,0.00017373,2]
[352008966,1738877441109,-500.0,0.00017373,2]
[352008967,1738877441118,-500.0,0.00017373,2]
[352008969,1738877441128,-601.34,0.00017373,2]
[352008971,1738877441137,-500.0,0.00017373,2]
[352008973,1738877441150,-1273.65,0.00017373,2]
[352008976,1738877441160,-500.0,0.00017373,2]
[352008978,1738877441170,-728.77,0.00017373,2]
[352008980,1738877441179,-500.0,0.00017373,2]
[352008982,1738877441189,-500.0,0.00017373,2]
[352008984,1738877441198,-500.0,0.00017373,2]
[352008986,1738877441207,-500.0,0.00017373,2]
[352008988,1738877441216,-500.0,0.00017373,2]
[352008990,1738877441225,-500.0,0.00017373,2]
[352008991,1738877441235,-156.921718,0.00017373,2]
[352008993,1738877441244,-500.0,0.00017373,2]
[352008995,1738877441254,-500.0,0.00017373,2]
[352008997,1738877441263,-500.0,0.00017373,2]
[352009000,1738877441273,-774.57,0.00017373,2]
[352009002,1738877441283,-500.0,0.00017373,2]
[352009003,1738877441292,-564.03,0.00017373,2]
[352009005,1738877441302,-155.564856,0.00017373,2]
[352009008,1738877441312,-500.0,0.00017373,2]
[352009010,1738877441321,-620.18,0.00017373,2]
[352009012,1738877441331,-500.0,0.00017373,2]
[352009013,1738877441341,-500.0,0.00017373,2]
[352009016,1738877441351,-500.0,0.00017373,2]
[352009017,1738877441360,-500.0,0.00017373,2]
[352009019,1738877441370,-587.68,0.00017373,2]
[352009022,1738877441379,-655.03,0.00017373,2]
[352009023,1738877441389,-235.72276411,0.00017373,2]
[352009047,1738877441598,-251.370003,0.00017373,2]
[352009050,1738877441623,-45.61723289,0.00017373,2]
[352009052,1738877441632,-500.0,0.00017373,2]
[352009054,1738877441641,-733.01,0.00017373,2]
[352009056,1738877441654,-500.0,0.00017373,2]
[352009058,1738877441663,-434.85670411,0.00017373,2]
[352009077,1738877441832,-180.58329589,0.00017373,2]
[352009080,1738877441841,-500.0,0.00017373,2]
[352009082,1738877441851,-297.24670411,0.00017373,2]
[352009085,1738877441877,-202.75329589,0.00017373,2]
[352009087,1738877441887,-500.0,0.00017373,2]
[352009089,1738877441897,-500.0,0.00017373,2]
[352009091,1738877441906,-500.0,0.00017373,2]
[352009093,1738877441916,-500.0,0.00017373,2]
[352009095,1738877441926,-913.04,0.00017373,2]
[352009097,1738877441935,-782.55,0.00017373,2]
[352009099,1738877441945,-500.0,0.00017373,2]
[352009101,1738877441954,-1159.47,0.00017373,2]
[352009103,1738877441964,-1295.06,0.00017373,2]
[352009105,1738877441974,-500.0,0.00017373,2]
[352009107,1738877441984,-1114.59,0.00017373,2]
[352009109,1738877441993,-500.0,0.00017373,2]
[352009111,1738877442003,-549.45,0.00017373,2]
[352009113,1738877442013,-530.9,0.00017373,2]
[352009115,1738877442023,-500.0,0.00017373,2]
[352009117,1738877442038,-1027.73,0.00017373,2]
[352009120,1738877442047,-500.0,0.00017373,2]
[352009121,1738877442056,-683.79,0.00017373,2]
[352009124,1738877442075,-1902.23,0.00017373,2]
[352009126,1738877442085,-137.50161283,0.00017373,2]
[352009177,1738877442572,-500.0,0.00017235,2]
[352009179,1738877442582,-92.14361496,0.00017236,2]
[352009182,1738877442594,-407.85638504,0.00017236,2]
[352009184,1738877442604,-326.48,0.00017252,2]
[352009186,1738877442614,-500.0,0.00017372,2]
[352009188,1738877442623,-339.59378465,0.00017373,2]
[352009190,1738877442632,-2212.42,0.00017373,2]
[352009192,1738877442642,-500.0,0.00017373,2]
[352009194,1738877442652,-500.0,0.00017373,2]
[352009196,1738877442662,-500.0,0.00017373,2]
[352009198,1738877442671,-500.0,0.00017373,2]
[352009200,1738877442680,-1063.34,0.00017373,2]
[352009202,1738877442690,-500.0,0.00017373,2]
[352009204,1738877442699,-500.0,0.00017373,2]
[352009206,1738877442709,-858.47,0.00017373,2]
[352009208,1738877442719,-836.33,0.00017373,2]
[352009210,1738877442728,-735.99,0.00017373,2]
[352009212,1738877442737,-701.33,0.00017373,2]
[352009214,1738877442747,-500.0,0.00017373,2]
[352009217,1738877442757,-331.30390987,0.00017373,2]
[352009220,1738877442766,-633.47,0.00017373,2]
[352009222,1738877442776,-500.0,0.00017373,2]
[352009224,1738877442786,-1270.6,0.00017373,2]
[352009226,1738877442796,-500.0,0.00017373,2]
[352009227,1738877442806,-514.06,0.00017373,2]
[352009229,1738877442815,-500.0,0.00017373,2]
[352009232,1738877442825,-500.0,0.00017373,2]
[352009234,1738877442835,-293.25,0.00017373,2]
[352009236,1738877442844,-500.0,0.00017373,2]
[352009238,1738877442854,-864.15,0.00017373,2]
[352009241,1738877442864,-500.0,0.00017373,2]
[352009242,1738877442874,-500.0,0.00017373,2]
[352009245,1738877442883,-500.0,0.00017373,2]
[352009248,1738877442893,-500.0,0.00017373,2]
[352009250,1738877442903,-500.0,0.00017373,2]
[352009252,1738877442912,-522.68,0.00017373,2]
[352009255,1738877442923,-500.0,0.00017373,2]
[352009256,1738877442932,-934.1,0.00017373,2]
[352009259,1738877442942,-500.0,0.00017373,2]
[352009261,1738877442951,-500.0,0.00017373,2]
[352009264,1738877442961,-697.18,0.00017373,2]
[352009266,1738877442971,-500.0,0.00017373,2]
[352009268,1738877442980,-500.0,0.00017373,2]
[352009270,1738877442990,-500.0,0.00017373,2]
[352009272,1738877442999,-659.1,0.00017373,2]
[352009274,1738877443010,-503.69,0.00017373,2]
[352009275,1738877443022,-662.32,0.00017373,2]
[352009276,1738877443031,-500.0,0.00017373,2]
[352009277,1738877443041,-8536.4458236,0.00017381,2]
[352009278,1738877443050,-673.01,0.00017388,2]
[352009279,1738877443061,-730.96,0.00017388,2]
[352009280,1738877443070,-555.39,0.00017388,2]
[352009281,1738877443080,-1164.37,0.00017388,2]
[352009282,1738877443090,-500.0,0.00017388,2]
[352009283,1738877443100,-600.37,0.00017388,2]
[352009284,1738877443110,-500.0,0.00017388,2]
[352009285,1738877443119,-819.93,0.00017388,2]
[352009286,1738877443129,-855.32,0.00017388,2]
[352009287,1738877443138,-500.0,0.00017388,2]
[352009288,1738877443149,-563.31,0.00017388,2]
[352009289,1738877443158,-686.03,0.00017388,2]
[352009290,1738877443167,-500.0,0.00017388,2]
[352009291,1738877443177,-590.98,0.00017388,2]
[352009292,1738877443186,-500.0,0.00017388,2]
[352009293,1738877443195,-919.03,0.00017388,2]
[352009295,1738877443205,-893.13,0.00017388,2]
[352009297,1738877443214,-500.0,0.00017388,2]
[352009299,1738877443223,-500.0,0.00017388,2]
[352009301,1738877443233,-610.64,0.00017388,2]
[352009303,1738877443242,-980.37,0.00017388,2]
[352009305,1738877443251,-1638.55,0.00017388,2]
[352009307,1738877443260,-2549.26,0.00017388,2]
[352009309,1738877443270,-431.58549028,0.00017389,2]
[352009311,1738877443279,-500.0,0.00017389,2]
[352009313,1738877443289,-500.0,0.00017389,2]
[352009315,1738877443299,-500.0,0.00017389,2]
[352009317,1738877443308,-500.0,0.00017389,2]
[352009319,1738877443317,-500.0,0.00017389,2]
[352009321,1738877443327,-500.0,0.00017389,2]
[352009323,1738877443336,-500.0,0.00017389,2]
[352009325,1738877443346,-500.0,0.00017389,2]
[352009327,1738877443356,-500.0,0.00017389,2]
[352009329,1738877443365,-500.0,0.00017389,2]
[352009331,1738877443375,-500.0,0.00017389,2]
[352009333,1738877443386,-500.0,0.00017389,2]
[352009336,1738877443399,-500.0,0.00017389,2]
[352009338,1738877443408,-500.0,0.00017389,2]
[352009339,1738877443418,-500.0,0.00017389,2]
[352009341,1738877443427,-500.0,0.00017389,2]
[352009344,1738877443437,-500.0,0.00017389,2]
[352009345,1738877443447,-500.0,0.00017389,2]
[352009348,1738877443456,-500.0,0.00017389,2]
[352009349,1738877443465,-500.0,0.00017389,2]
[352009351,1738877443474,-500.0,0.00017389,2]
[352009353,1738877443483,-500.0,0.00017389,2]
[352009355,1738877443493,-500.0,0.00017389,2]
[352009357,1738877443502,-500.0,0.00017389,2]
[352009359,1738877443512,-500.0,0.00017389,2]
[352009361,1738877443521,-500.0,0.00017389,2]
[352009363,1738877443530,-500.0,0.00017389,2]
[352009365,1738877443539,-500.0,0.00017389,2]
[352009367,1738877443549,-500.0,0.00017389,2]
[352009369,1738877443558,-500.0,0.00017389,2]
[352009371,1738877443568,-188.66894562,0.00017389,2]
[352009373,1738877443577,-500.0,0.00017389,2]
[352009375,1738877443587,-500.0,0.00017389,2]
[352009377,1738877443596,-500.0,0.00017389,2]
[352009379,1738877443605,-500.0,0.00017389,2]
[352009381,1738877443615,-500.0,0.00017389,2]
[352009383,1738877443624,-500.0,0.00017389,2]
[352009385,1738877443634,-500.0,0.00017389,2]
[352009387,1738877443644,-500.0,0.00017389,2]
[352009389,1738877443655,-500.0,0.00017389,2]
[352009391,1738877443665,-500.0,0.00017389,2]
[352009393,1738877443675,-500.0,0.00017389,2]
[352009395,1738877443684,-500.0,0.00017389,2]
[352009397,1738877443693,-500.0,0.00017389,2]
[352009399,1738877443703,-500.0,0.00017389,2]
[352009401,1738877443715,-500.0,0.00017389,2]
[352009402,1738877443724,-500.0,0.00017389,2]
[352009403,1738877443733,-500.0,0.00017389,2]
[352009404,1738877443743,-500.0,0.00017389,2]
[352009405,1738877443752,-626.06464842,0.00017389,2]
[352009406,1738877443763,-500.0,0.00017389,2]
[352009407,1738877443773,-500.0,0.00017389,2]
[352009408,1738877443782,-500.0,0.00017389,2]
[352009409,1738877443793,-500.0,0.00017389,2]
[352009410,1738877443802,-500.0,0.00017389,2]
[352009411,1738877443812,-500.0,0.00017389,2]
[352009412,1738877443822,-500.0,0.00017389,2]
[352009413,1738877443831,-500.0,0.00017389,2]
[352009414,1738877443841,-500.0,0.00017389,2]
[352009415,1738877443851,-500.0,0.00017389,2]
[352009416,1738877443860,-500.0,0.00017389,2]
[352009417,1738877443870,-500.0,0.00017389,2]
[352009418,1738877443880,-500.0,0.00017389,2]
[352009419,1738877443890,-500.0,0.00017389,2]
[352009420,1738877443902,-500.0,0.00017389,2]
[352009421,1738877443911,-479.06361955,0.00017389,2]
[352009422,1738877443921,-500.0,0.00017389,2]
[352009423,1738877443931,-500.0,0.00017389,2]
[352009424,1738877443941,-500.0,0.00017389,2]
[352009425,1738877443950,-500.0,0.00017389,2]
[352009426,1738877443958,-500.0,0.00017389,2]
[352009427,1738877443967,-500.0,0.00017389,2]
[352009428,1738877443975,-500.0,0.00017389,2]
[352009429,1738877443985,-500.0,0.00017389,2]
[352009430,1738877443995,-500.0,0.00017389,2]
[352009431,1738877444004,-500.0,0.00017389,2]
[352009432,1738877444013,-500.0,0.00017389,2]
[352009433,1738877444023,-500.0,0.00017389,2]
[352009434,1738877444035,-500.0,0.00017389,2]
[352009435,1738877444044,-500.0,0.00017389,2]
[352009436,1738877444052,-473.93896218,0.00017389,2]
[352009437,1738877444066,-26.06103782,0.00017389,2]
[352009438,1738877444077,-446.04837086,0.00017389,2]
[352009439,1738877444086,-500.0,0.00017389,2]
[352009440,1738877444095,-500.0,0.00017389,2]
[352009441,1738877444105,-500.0,0.00017389,2]
[352009442,1738877444114,-500.0,0.00017389,2]
[352009443,1738877444123,-523.38,0.00017389,2]
[352009444,1738877444132,-500.0,0.00017389,2]
[352009445,1738877444141,-500.0,0.00017389,2]
[352009446,1738877444189,-500.0,0.00017389,2]
[352009447,1738877444200,-500.0,0.00017389,2]
[352009449,1738877444210,-500.0,0.00017389,2]
[352009451,1738877444219,-500.0,0.00017389,2]
[352009452,1738877444228,-500.0,0.00017389,2]
[352009453,1738877444237,-500.0,0.00017389,2]
[352009454,1738877444246,-517.08,0.00017389,2]
[352009455,1738877444255,-500.0,0.00017389,2]
[352009456,1738877444264,-500.0,0.00017389,2]
[352009457,1738877444274,-500.0,0.00017389,2]
[352009458,1738877444284,-500.0,0.00017389,2]
[352009459,1738877444294,-500.0,0.00017389,2]
[352009460,1738877444303,-500.0,0.00017389,2]
[352009461,1738877444312,-500.0,0.00017389,2]
[352009462,1738877444322,-355.23762103,0.00017389,2]
[352009463,1738877444331,-530.44863756,0.00017389,2]
[352009464,1738877444340,-500.0,0.00017389,2]
[352009465,1738877444351,-500.0,0.00017389,2]
[352009466,1738877444360,-500.0,0.00017389,2]
[352009467,1738877444370,-500.0,0.00017389,2]
[352009468,1738877444379,-500.0,0.00017389,2]
[352009469,1738877444388,-500.0,0.00017389,2]
[352009470,1738877444399,-500.0,0.00017389,2]
[352009471,1738877444409,-500.0,0.00017389,2]
[352009472,1738877444418,-500.0,0.00017389,2]
[352009473,1738877444427,-500.0,0.00017389,2]
[352009474,1738877444436,-500.0,0.00017389,2]
[352009475,1738877444447,-500.0,0.00017389,2]
[352009476,1738877444456,-500.0,0.00017389,2]
[352009477,1738877444466,-500.0,0.00017389,2]
[352009478,1738877444475,-500.0,0.00017389,2]
[352009479,1738877444484,-500.0,0.00017389,2]
[352009480,1738877444494,-500.0,0.00017389,2]
[352009481,1738877444503,-500.0,0.00017389,2]
[352009482,1738877444513,-500.0,0.00017389,2]
[352009483,1738877444522,-557.4,0.00017389,2]
[352009484,1738877444532,-500.0,0.00017389,2]
[352009485,1738877444541,-500.0,0.00017389,2]
[352009486,1738877444550,-500.0,0.00017389,2]
[352009487,1738877444559,-500.0,0.00017389,2]
[352009488,1738877444568,-500.0,0.00017389,2]
[352009489,1738877444579,-500.0,0.00017389,2]
[352009490,1738877444588,-500.0,0.00017389,2]
[352009491,1738877444597,-632.74,0.00017389,2]
[352009492,1738877444606,-500.0,0.00017389,2]
[352009493,1738877444615,-500.0,0.00017389,2]
[352009494,1738877444624,-500.0,0.00017389,2]
[352009495,1738877444633,-500.0,0.00017389,2]
[352009496,1738877444643,-500.0,0.00017389,2]
[352009497,1738877444654,-500.0,0.00017389,2]
[352009498,1738877444663,-500.0,0.00017389,2]
[352009499,1738877444672,-570.32,0.00017389,2]
[352009500,1738877444681,-610.86,0.00017389,2]
[352009501,1738877444691,-500.0,0.00017389,2]
[352009502,1738877444700,-472.96,0.00017389,2]
[352009503,1738877444711,-408.54,0.00017389,2]
[352009504,1738877444720,-500.0,0.00017389,2]
[352009505,1738877444730,-473.2,0.00017389,2]
[352009506,1738877444739,-425.82,0.00017389,2]
[352009507,1738877444748,-500.0,0.00017389,2]
[352009508,1738877444757,-425.6,0.00017389,2]
[352009509,1738877444767,-500.0,0.00017389,2]
[352009510,1738877444776,-500.0,0.00017389,2]
[352009511,1738877444787,-500.0,0.00017389,2]
[352009512,1738877444796,-500.0,0.00017389,2]
[352009513,1738877444806,-228.46,0.00017389,2]
[352009514,1738877444815,-500.0,0.00017389,2]
[352009515,1738877444825,-178.14,0.00017389,2]
[352009516,1738877444834,-500.0,0.00017389,2]
[352009517,1738877444844,-770.63,0.00017389,2]
[352009518,1738877444854,-500.0,0.00017389,2]
[352009519,1738877444864,-500.0,0.00017389,2]
[352009520,1738877444873,-789.51,0.00017389,2]
[352009521,1738877444883,-500.0,0.00017389,2]
[352009522,1738877444893,-500.0,0.00017389,2]
[352009523,1738877444903,-141.00588248,0.00017389,2]
[352009524,1738877444916,-607.75411752,0.00017389,2]
[352009525,1738877444926,-624.58,0.00017389,2]
[352009526,1738877444936,-277.00588248,0.00017389,2]
[352009527,1738877444948,-288.54411752,0.00017389,2]
[352009528,1738877444961,-500.0,0.00017389,2]
[352009529,1738877444970,-500.0,0.00017389,2]
[352009530,1738877444979,-874.49,0.00017389,2]
[352009531,1738877444989,-500.0,0.00017389,2]
[352009532,1738877444999,-500.0,0.00017389,2]
[352009533,1738877445009,-743.54,0.00017389,2]
[352009534,1738877445021,-500.0,0.00017389,2]
[352009535,1738877445031,-420.07588248,0.00017389,2]
[352009536,1738877445043,-79.92411752,0.00017389,2]
[352009537,1738877445053,-500.0,0.00017389,2]
[352009538,1738877445062,-512.4,0.00017389,2]
[352009539,1738877445072,-500.0,0.00017389,2]
[352009540,1738877445082,-500.0,0.00017389,2]
[352009541,1738877445093,-500.0,0.00017389,2]
[352009542,1738877445103,-714.84,0.00017389,2]
[352009543,1738877445112,-500.0,0.00017389,2]
[352009544,1738877445121,-500.0,0.00017389,2]
[352009545,1738877445131,-500.0,0.00017389,2]
[352009546,1738877445140,-85.59696248,0.00017389,2]
[352009547,1738877445151,-151.54688295,0.00017389,2]
[352009548,1738877445161,-337.50311539,0.00017389,2]
[352009549,1738877445177,-629.96,0.00017235,2]
[352009550,1738877445187,-162.49688461,0.00017389,2]
[352009551,1738877445196,-595.92,0.00017389,2]
[352009552,1738877445206,-500.0,0.00017389,2]
[352009553,1738877445216,-442.3,0.00017389,2]
[352009554,1738877445226,-500.0,0.00017389,2]
[352009555,1738877445235,-500.0,0.00017389,2]
[352009556,1738877445245,-500.0,0.00017389,2]
[352009557,1738877445255,-177.66,0.00017389,2]
[352009558,1738877445265,-500.0,0.00017389,2]
[352009559,1738877445275,-500.0,0.00017389,2]
[352009560,1738877445284,-500.0,0.00017389,2]
[352009561,1738877445294,-500.0,0.00017389,2]
[352009562,1738877445304,-355.98959066,0.00017389,2]
[352009563,1738877445313,-500.0,0.0001739,2]
[352009564,1738877445322,-500.0,0.0001739,2]
[352009565,1738877445332,-500.0,0.0001739,2]
[352009566,1738877445341,-606.54,0.0001739,2]
[352009567,1738877445351,-298.108736,0.0001739,2]
[352009568,1738877445363,-153.88095838,0.0001739,2]
[352009569,1738877445372,-380.50271431,0.0001739,2]
[352009570,1738877445382,-572.5,0.0001739,2]
[352009571,1738877445392,-500.0,0.0001739,2]
[352009572,1738877445402,-500.0,0.0001739,2]
[352009573,1738877445412,-500.0,0.0001739,2]
[352009574,1738877445422,-500.0,0.0001739,2]
[352009575,1738877445432,-500.0,0.0001739,2]
[352009576,1738877445442,-500.0,0.0001739,2]
[352009577,1738877445451,-386.44,0.0001739,2]
[352009578,1738877445462,-500.0,0.0001739,2]
[352009579,1738877445472,-500.0,0.0001739,2]
[352009580,1738877445481,-500.0,0.0001739,2]
[352009581,1738877445491,-500.0,0.0001739,2]
[352009582,1738877445500,-500.0,0.0001739,2]
[352009583,1738877445510,-500.0,0.0001739,2]
[352009584,1738877445520,-500.0,0.0001739,2]
[352009585,1738877445529,-575.26,0.0001739,2]
[352009586,1738877445538,-500.0,0.0001739,2]
[352009587,1738877445548,-500.0,0.0001739,2]
[352009588,1738877445558,-217.95234745,0.0001739,2]
[352009589,1738877445570,-282.04765255,0.0001739,2]
[352009590,1738877445579,-270.87770434,0.0001739,2]